Cogmind - Beta 15 *** ADVENTURER MODE // 2025.10.15 @ 00:35:02 // Winter2022/Polymind Player: time Result: Destroyed by G-67 Veteran with Plasma Rifle Performance ------------- Evolutions (6) 3000 Regions Visited (15) 3000 Robots Destroyed (39) 195 Value Destroyed (1603) 1603 Prototype IDs (1) 20 Alien Tech Used (0) 0 Bonus (8908) 8908 TOTAL SCORE: 15926 Bonus ------- Polymind Skill 6238 Pacifist 470 Entered Garrisons 200 Entered DSFs 1000 Met Warlord at Base 500 MAIN.C Attacked Warlord 500 Cogmind --------- Core Integrity 0/1150 Matter 0/0 Energy 50/50 System Corruption 7% Temperature Cool (0) Movement Core (50) Location -4/Warlord Parts ------- > --- POWER (1) -------- (None) > --- PROPULSION (2) --- (None) > --- UTILITY (1) ------ Propulsion Shielding > --- WEAPON (1) ------- (None) > --- INVENTORY (0) ---- (None) Peak State ------------ > --- POWER ------------ Reinforced Deuterium Engine > --- PROPULSION ------- Armored Treads Armored Treads Armored Treads > --- UTILITY ---------- Cooling System Visual Processing Unit Active Sensor Suite Targeting Computer Weapon Cycler Transmission Jammer Hardened Heavy Armor Plating Graphene Brace Dynamic Insulation System > --- WEAPON ----------- Heavy Assault Cannon > --- INVENTORY -------- (None) [Rating: 78] Favorites ----------- Power Reinforced Deuterium Engine Engine Reinforced Deuterium Engine Power Core Light Nuclear Core Reactor Light Antimatter Reactor Propulsion Armored Treads Treads Armored Treads Leg Myomer Leg Wheel Wheel Flight Unit Flight Unit Utility Targeting Computer Device Cooling System Storage Small Matter Pod Processor Targeting Computer Protection Hardened Heavy Armor Plating Weapon Coil Gun Energy Gun Particle Gun Ballistic Gun Coil Gun Ballistic Cannon Heavy Assault Cannon Slashing Weapon Segregator Build | -11 -10 -9 -9 -8 -7 -7 -7 -7 -6 -5 -5 -4 -4 -4 -4 ------- Run | Yrd Mat Mat Min Mat Fac Gar Fac DSF Fac Fac DSF Fac Upp Upp War Slots Evolved . | . . . . . . . . . . . . . . . . Power . | . . . . . . . . . . . . . . . . Propulsion . | . . . . . . . . . . . . . . . . Utility . | . . . . . . . . . . . . . . . . Weapon . | . . . . . . . . . . . . . . . . Parts Attached . | . . . . . . . . . . . . . . . . Power . | . . . . . . . . . . . . . . . . Engine . | . . . . . . . . . . . . . . . . Core . | . . . . . . . . . . . . . . . . Reactor . | . . . . . . . . . . . . . . . . Propulsion . | . . . . . . . . . . . . . . . . Treads . | . . . . . . . . . . . . . . . . Leg . | . . . . . . . . . . . . . . . . Wheel . | . . . . . . . . . . . . . . . . Hover . | . . . . . . . . . . . . . . . . Flight . | . . . . . . . . . . . . . . . . Utility . | . . . . . . . . . . . . . . . . Device . | . . . . . . . . . . . . . . . . Storage . | . . . . . . . . . . . . . . . . Processor . | . . . . . . . . . . . . . . . . Hackware . | . . . . . . . . . . . . . . . . Protection . | . . . . . . . . . . . . . . . . Artifact . | . . . . . . . . . . . . . . . . Weapon . | . . . . . . . . . . . . . . . . Energy Gun . | . . . . . . . . . . . . . . . . Energy Cannon . | . . . . . . . . . . . . . . . . Ballistic Gun . | . . . . . . . . . . . . . . . . Ballistic Cannon . | . . . . . . . . . . . . . . . . Launcher . | . . . . . . . . . . . . . . . . Special Weapon . | . . . . . . . . . . . . . . . . Impact Weapon . | . . . . . . . . . . . . . . . . Slashing Weapon . | . . . . . . . . . . . . . . . . Piercing Weapon . | . . . . . . . . . . . . . . . . Special Melee Weapon . | . . . . . . . . . . . . . . . . Unidentified Prototypes . | . . . . . . . . . . . . . . . . Parts Lost 32 | . . . . . 9 8 . . . . 1 . 6 . 8 Power 5 | . . . . . 2 1 . . . . . . 1 . 1 Propulsion 10 | . . . . . 4 2 . . . . . . 2 . 2 Utility 7 | . . . . . . 3 . . . . 1 . 1 . 2 Weapon 10 | . . . . . 3 2 . . . . . . 2 . 3 Highest Loss Streak 8 | . . . . . 5 5 . . . . 1 . 5 . 8 To Critical Strikes . | . . . . . . . . . . . . . . . . Average Backups . | . . . . . . . . . . . . . . . . Power . | . . . . . . . . . . . . . . . . Propulsion . | . . . . . . . . . . . . . . . . Utility . | . . . . . . . . . . . . . . . . Weapon . | . . . . . . . . . . . . . . . . Tool/Special . | . . . . . . . . . . . . . . . . Unused Backups . | . . . . . . . . . . . . . . . . Power . | . . . . . . . . . . . . . . . . Propulsion . | . . . . . . . . . . . . . . . . Utility . | . . . . . . . . . . . . . . . . Weapon . | . . . . . . . . . . . . . . . . Tool/Special . | . . . . . . . . . . . . . . . . Average Slot Usage (%) 71 | . 35 80 80 82 86 66 100 81 77 77 75 71 86 87 26 Engine 4 | . 8 20 20 20 8 7 . 3 5 5 5 5 . . . Core 2 | . . . . . 7 3 20 4 . . . . 3 . . Reactor 2 | . . . . . . . . . . . . . 9 12 3 Treads 5 | . . . . . . 8 . 12 16 16 16 15 . . . Leg 10 | . . . . . 16 7 40 8 . . . . 19 25 7 Wheel 1 | . 17 40 40 14 . . . . . . . . . . . Flight 3 | . . . . 26 19 . . . . . . . 5 . . Device 12 | . . . . . . 15 20 30 33 33 31 27 2 . . Processor 7 | . . . . . 8 3 . 8 11 11 11 11 10 12 3 Protection 2 | . . . . . . 4 . 3 5 5 5 5 . . . Energy Gun 2 | . . . . . . 8 20 4 . . . . . . . Ballistic Gun 12 | . . . . 13 24 7 . . . . . . 32 37 10 Ballistic Cannon 1 | . . . . . . . . 3 5 5 5 5 . . . Peak Build Rating 78 | . 4 4 4 4 15 23 10 78 78 78 78 74 68 36 54 Average Rating 35 | . 1 4 4 3 9 13 10 64 78 78 76 73 34 36 11 On Entrance 30 | . . 4 4 4 4 1 10 10 78 78 78 74 68 36 36 Naked Turns 538 | . 44 . . 18 3 2 . . . . . . 3 . 468 Heaviest Build 58 | . 4 4 4 4 11 23 9 58 58 58 58 56 56 25 33 Greatest Support 60 | 3 20 20 20 20 30 40 20 60 60 60 60 60 50 50 56 Greatest Overweight (x) 6 | . . . . . . 6 . . . . . 2 2 . . Average Overweight (x) . | . . . . . . . . . . . . . . . . Largest Inventory Capacity 1 | . 1 1 1 1 1 1 1 1 1 1 1 1 1 1 1 Average Capacity . | . . 1 1 . . . 1 1 1 1 1 1 . 1 . Most Carried . | . . . . . . . . . . . . . . . . Average Carried . | . . . . . . . . . . . . . . . . Final Capacity 1 | . 1 1 1 . 1 1 1 1 1 1 1 1 1 1 . Final Carried . | . . . . . . . . . . . . . . . . Class Distribution -------------------- 30% | Heavy 30% | Hunter 11% | Cogmind 7% | Sentry 7% | Swarmer 7% | Grunt 4% | Worker Dominant Class ---------------- Cogmind | -10/Materials Worker | -9/Materials Worker | -9/Mines Swarmer | -8/Materials Hunter | -7/Factory Sentry | -7/Garrison Grunt | -7/Factory Heavy | -7/DSF Heavy | -6/Factory Heavy | -5/Factory Heavy | -5/DSF Heavy | -4/Factory Hunter | -4/Upper Caves Hunter | -4/Upper Caves Cogmind | -4/Warlord Resources | -11 -10 -9 -9 -8 -7 -7 -7 -7 -6 -5 -5 -4 -4 -4 -4 ----------- Run | Yrd Mat Mat Min Mat Fac Gar Fac DSF Fac Fac DSF Fac Upp Upp War Matter Collected 581 | . 50 . . 11 40 . . . . . 25 59 287 109 . Remotely . | . . . . . . . . . . . . . . . . Salvage Created 1326 | . . . . 49 152 166 . . . . . 232 526 201 . Parts 69 | . . . . 7 19 9 . . . . . 3 20 11 . Haulers Intercepted . | . . . . . . . . . . . . . . . . Recyclers Shooed . | . . . . . . . . . . . . . . . . Parts Field Recycled . | . . . . . . . . . . . . . . . . Retrieved Matter . | . . . . . . . . . . . . . . . . Parts Self-Destructed 35 | . . . . . . . . . . . . . 20 15 . Prevented . | . . . . . . . . . . . . . . . . Kills | -11 -10 -9 -9 -8 -7 -7 -7 -7 -6 -5 -5 -4 -4 -4 -4 ------- Run | Yrd Mat Mat Min Mat Fac Gar Fac DSF Fac Fac DSF Fac Upp Upp War Combat Hostiles Destroyed 37 | . . . . 3 5 8 . . . . . 3 12 6 . Melee 1 | . . . . . . . . . . . . 1 . . . Guns 31 | . . . . 3 5 8 . . . . . . 9 6 . Cannons 5 | . . . . . . . . . . . . 2 3 . . Classes Destroyed 7 | . . . . 1 3 2 . . . . . 1 . . . Builder 1 | . . . . . 1 . . . . . . . . . . Watcher 1 | . . . . . . . . . . . . 1 . . . Swarmer 18 | . . . . 3 2 . . . . . . . 8 5 . Grunt 10 | . . . . . . 5 . . . . . 2 3 . . Sentry 4 | . . . . . 2 1 . . . . . . . 1 . Hunter 3 | . . . . . 1 1 . . . . . . 1 . . Programmer 2 | . . . . . . 1 . . . . . 1 . . . Best Kill Streak 7 | . . . . 3 3 7 . . . . . 3 4 5 . Combat Bots Only 7 | . . . . 3 2 7 . . . . . 3 4 5 . Max Kills in Single Turn 3 | . . . . 1 2 1 . . . . . 1 3 2 . Gunslinging 1 | . . . . . . . . . . . . . 1 1 . Exploded . | . . . . . . . . . . . . . . . . Melee 1 | . . . . . . . . . . . . 1 . . . Uniques/NPCs Destroyed . | . . . . . . . . . . . . . . . . Combat | -11 -10 -9 -9 -8 -7 -7 -7 -7 -6 -5 -5 -4 -4 -4 -4 -------- Run | Yrd Mat Mat Min Mat Fac Gar Fac DSF Fac Fac DSF Fac Upp Upp War Hostile Shots Fired 991 | . 2 . . 52 302 247 . . . . 11 42 106 25 204 Missed 418 | . . . . 31 140 84 . . . . 1 10 40 9 103 Hits 573 | . 2 . . 21 162 163 . . . . 10 32 66 16 101 Melee 2 | . . . . . . . . . . . . . . . 2 Projectile 571 | . 2 . . 21 162 163 . . . . 10 32 66 16 99 AOE 2 | . . . . . . . . . . . . . . . 2 Critical Strikes 16 | . . . . . 2 6 . . . . 1 1 3 . 3 Actively Blocked 2 | . . . . . . . . . . . 1 1 . . . Damage Taken 6201 | . 20 . . 192 941 1325 . . . . 552 495 862 164 1650 Core 2052 | . 20 . . 69 319 368 . . . . 115 78 316 22 745 Absorbed by Shields . | . . . . . . . . . . . . . . . . Redirected to Shielding 29 | . . . . . . . . . . . . . . . 29 Ignored by Resistances 2343 | . 6 . . 58 585 404 . . . . 142 141 342 116 549 Core Remaining (%) 81 | 100 92 . 100 87 . . . 1 100 . 88 . . . . Volleys Fired 105 | . . . . 7 29 19 . . . . 4 8 27 8 3 Largest 3 | . . . . 1 2 2 . . . . 1 1 3 3 3 Hottest 108 | . . . . 20 48 108 . . . . 50 50 85 85 96 Shots Fired 189 | . . . . 7 43 34 . . . . 4 8 60 24 9 Gun 174 | . . . . 7 43 34 . . . . . . 57 24 9 Cannon 15 | . . . . . . . . . . . 4 8 3 . . Launcher . | . . . . . . . . . . . . . . . . Special . | . . . . . . . . . . . . . . . . Kinetic 174 | . . . . 7 43 19 . . . . 4 8 60 24 9 Thermal 15 | . . . . . . 15 . . . . . . . . . Explosive . | . . . . . . . . . . . . . . . . Electromagnetic . | . . . . . . . . . . . . . . . . Robot Hit Streak 28 | . . . . 4 14 28 . . . . 5 12 11 11 8 Robot Miss Streak 3 | . . . . 1 2 3 . . . . . 1 3 2 1 Penetration Max 1 | . . . . . 1 . . . . . . . 1 . . Secondary Targets 8 | . . . . . 1 3 . . . . . . 1 3 . Max Gunslinging Chain 2 | . . . . . 1 1 . . . . . . 1 2 . Shots Hit Robots 154 | . . . . 5 33 34 . . . . 4 7 44 18 9 Core Hits 103 | . . . . 5 15 46 . . . . . 3 24 10 . Critical Kills 3 | . . . . . . . . . . . . . 3 . . Critical Parts Destroyed . | . . . . . . . . . . . . . . . . Critical Strikes 4 | . . . . . . . . . . . . 1 3 . . Destroy 3 | . . . . . . . . . . . . . 3 . . Blast 1 | . . . . . . . . . . . . 1 . . . Melee Attacks 2 | . . . . . . . . . . . . . . . 2 Thermal 2 | . . . . . . . . . . . . . . . 2 Impact . | . . . . . . . . . . . . . . . . Slashing . | . . . . . . . . . . . . . . . . Piercing . | . . . . . . . . . . . . . . . . Sneak Attacks . | . . . . . . . . . . . . . . . . Combat Hostiles . | . . . . . . . . . . . . . . . . Follow-up Attacks . | . . . . . . . . . . . . . . . . Damage Inflicted 3783 | . . . . 41 489 934 . . . . 223 456 1054 443 143 Guns 2846 | . . . . 41 483 895 . . . . . . 845 443 139 Cannons 815 | . . . . . . . . . . . 223 402 190 . . Explosions . | . . . . . . . . . . . . . . . . Melee . | . . . . . . . . . . . . . . . . Ramming 122 | . . . . . 6 39 . . . . . 54 19 . 4 Kinetic 3223 | . . . . 41 483 457 . . . . 223 402 1035 443 139 Thermal 438 | . . . . . . 438 . . . . . . . . . Explosive . | . . . . . . . . . . . . . . . . Electromagnetic . | . . . . . . . . . . . . . . . . Impact . | . . . . . . . . . . . . . . . . Slashing . | . . . . . . . . . . . . . . . . Piercing . | . . . . . . . . . . . . . . . . Highest Corruption 7 | . . . . . . . . . . . . 3 3 3 7 Average Corruption 2 | . . . . . . . . . . . . 1 3 3 3 Corruption Purged . | . . . . . . . . . . . . . . . . Corruption Blocked . | . . . . . . . . . . . . . . . . Effects 23 | . . . . . . . . . . . . 1 18 3 1 Message Errors 6 | . . . . . . . . . . . . . 5 1 . Matter Fused 1 | . . . . . . . . . . . . . . 1 . Heat Flow Errors 7 | . . . . . . . . . . . . . 6 1 . Energy Discharges 1 | . . . . . . . . . . . . . 1 . . Data Loss (minor) 2 | . . . . . . . . . . . . 1 1 . . Data Loss (major) 2 | . . . . . . . . . . . . . 1 . 1 Misfires 2 | . . . . . . . . . . . . . 2 . . Alerts 2 | . . . . . . . . . . . . . 2 . . Overload Shots . | . . . . . . . . . . . . . . . . Overflow Damage 5 | . . . . . . . . . . . . 5 . . . Projectiles 5 | . . . . . . . . . . . . 5 . . . Explosions . | . . . . . . . . . . . . . . . . Melee . | . . . . . . . . . . . . . . . . Knockbacks 6 | . . . . . . . . . . . . 5 1 . . Impact 1 | . . . . . . . . . . . . . 1 . . Kinetic 4 | . . . . . . . . . . . . 4 . . . Secondary 1 | . . . . . . . . . . . . 1 . . . Self-Inflicted Damage 29 | . . . . . 1 17 . . . . . . 9 . 2 Shots . | . . . . . . . . . . . . . . . . Rammed 21 | . . . . . 1 11 . . . . . 5 3 . 1 Targets Rammed 27 | . . . . . 5 11 . . . . . 7 3 . 1 Kicked 4 | . . . . . 4 . . . . . . . . . . Crushed 2 | . . . . . . . . . . . . 2 . . . Highest Temperature 294 | . . . . 19 20 294 . . . . . . 222 116 30 Average Temperature 59 | . . . . 8 9 94 . . . . . . 66 37 7 Received Heat Transfer 1392 | . 15 . . 54 264 687 . . . . . 33 69 27 243 Siege Activations . | . . . . . . . . . . . . . . . . Martial Activations . | . . . . . . . . . . . . . . . . Shielding Activations . | . . . . . . . . . . . . . . . . Robots Disrupted . | . . . . . . . . . . . . . . . . Combat Hostiles . | . . . . . . . . . . . . . . . . Robots Corrupted . | . . . . . . . . . . . . . . . . Combat Hostiles . | . . . . . . . . . . . . . . . . Parts Fried . | . . . . . . . . . . . . . . . . Impact Corruptions . | . . . . . . . . . . . . . . . . Robots Melted . | . . . . . . . . . . . . . . . . Combat Hostiles . | . . . . . . . . . . . . . . . . Parts Melted . | . . . . . . . . . . . . . . . . Heat Transferred 950 | . . . . . . 950 . . . . . . . . . Parts Sabotaged 4 | . . . . . . . . . . . . . . . 4 Parts Stolen . | . . . . . . . . . . . . . . . . Parts Stripped . | . . . . . . . . . . . . . . . . Power Chain Reactions . | . . . . . . . . . . . . . . . . Alert | -11 -10 -9 -9 -8 -7 -7 -7 -7 -6 -5 -5 -4 -4 -4 -4 ------- Run | Yrd Mat Mat Min Mat Fac Gar Fac DSF Fac Fac DSF Fac Upp Upp War Maximum Alert Level 1 | . . . . 1 . 1 . . . . . . . . . Low Security (%) 94 | 100 100 100 100 92 100 73 100 100 100 100 100 100 . . . Level 1 5 | . . . . 7 . 26 . . . . . . . . . Level 2 . | . . . . . . . . . . . . . . . . Level 3 . | . . . . . . . . . . . . . . . . Level 4 . | . . . . . . . . . . . . . . . . Level 5 . | . . . . . . . . . . . . . . . . High Security . | . . . . . . . . . . . . . . . . Max Security . | . . . . . . . . . . . . . . . . Peak Influence 241 | . . . . 206 110 241 99 11 . . 15 122 . . . Initial 99 | . . . . . 79 43 99 11 . . . 6 . . . Average 39 | . . . . 51 48 123 59 2 . . . 11 . . . Influence Increases 1361 | . . . . 256 202 275 . . . . 15 183 285 130 15 Destroy 0b10 Robot/C 740 | . . . . 60 100 160 . . . . . 60 240 120 . Destroy 0b10 Robot/NC 10 | . . . . . 5 . . . . . . 5 . . . Destroy Leader 122 | . . . . 10 40 20 . . . . . 12 30 10 . Successful Hack 22 | . . . . 6 12 . . . . . . 4 . . . Anti-Garrison Action 50 | . . . . . . 50 . . . . . . . . . Destroy Structure 2 | . . . . . . . . . . . . 2 . . . Partial Spotted 75 | . . . . 30 30 15 . . . . . . . . . Lose Combat Pursuer 240 | . . . . 150 15 30 . . . . 15 . 15 . 15 Active Sensor Use 100 | . . . . . . . . . . . . 100 . . . Influence Decreases 1361 | . . . . 50 336 128 200 19 . . . 96 387 60 85 Entered New Map 409 | . . . . . 127 29 120 8 . . . 9 46 . 70 Time Decay 677 | . . . . 50 119 . 80 . . . . 87 281 60 . Lost Part 245 | . . . . . 90 80 . . . . . . 60 . 15 Miscellaneous 30 | . . . . . . 19 . 11 . . . . . . . Squads Dispatched 10 | . . . . 3 3 . . . 1 . . 3 . . . Investigation 3 | . . . . . . . . . 1 . . 2 . . . Extermination 1 | . . . . . . . . . . . . 1 . . . Reinforcement 4 | . . . . 3 1 . . . . . . . . . . Assault . | . . . . . . . . . . . . . . . . Garrison 2 | . . . . . 2 . . . . . . . . . . Intercept . | . . . . . . . . . . . . . . . . Searches Triggered . | . . . . . . . . . . . . . . . . Construction Impeded . | . . . . . . . . . . . . . . . . Haulers Reinforced . | . . . . . . . . . . . . . . . . Active Scanning Responses 1 | . . . . . . . . . . . . 1 . . . Cargo Convoy Interrupts . | . . . . . . . . . . . . . . . . Stealth | -11 -10 -9 -9 -8 -7 -7 -7 -7 -6 -5 -5 -4 -4 -4 -4 --------- Run | Yrd Mat Mat Min Mat Fac Gar Fac DSF Fac Fac DSF Fac Upp Upp War Distress Signals 1 | . . . . . . . . . . . . . . . 1 Communications Jammed 5 | . . . . . . . . . . . 4 1 . . . Distress Signals 1 | . . . . . . . . . . . . 1 . . . Times Spotted 154 | . 2 . . 32 13 16 . . 1 . 1 9 14 6 60 Peak Tracking Total 27 | . 2 . . 18 5 6 . . . . 1 4 4 5 27 Tactical Retreats 8 | . . . . 2 1 2 . . . . 1 . 1 . 1 Traps | -11 -10 -9 -9 -8 -7 -7 -7 -7 -6 -5 -5 -4 -4 -4 -4 ------- Run | Yrd Mat Mat Min Mat Fac Gar Fac DSF Fac Fac DSF Fac Upp Upp War Traps Triggered 1 | . . . . . . . . . . . . 1 . . . Indirectly . | . . . . . . . . . . . . . . . . Trap Hack Attempts . | . . . . . . . . . . . . . . . . Triggered . | . . . . . . . . . . . . . . . . Disarmed . | . . . . . . . . . . . . . . . . Reprogrammed . | . . . . . . . . . . . . . . . . Reused . | . . . . . . . . . . . . . . . . Traps Extracted . | . . . . . . . . . . . . . . . . Installed . | . . . . . . . . . . . . . . . . Triggered . | . . . . . . . . . . . . . . . . Machines | -11 -10 -9 -9 -8 -7 -7 -7 -7 -6 -5 -5 -4 -4 -4 -4 ---------- Run | Yrd Mat Mat Min Mat Fac Gar Fac DSF Fac Fac DSF Fac Upp Upp War Machines Disabled . | . . . . . . . . . . . . . . . . Max in Single Turn . | . . . . . . . . . . . . . . . . Machines Repaired . | . . . . . . . . . . . . . . . . Machines Dismantled . | . . . . . . . . . . . . . . . . Machines Sabotaged . | . . . . . . . . . . . . . . . . Overloaded Fab Kills . | . . . . . . . . . . . . . . . . Hacking | -11 -10 -9 -9 -8 -7 -7 -7 -7 -6 -5 -5 -4 -4 -4 -4 --------- Run | Yrd Mat Mat Min Mat Fac Gar Fac DSF Fac Fac DSF Fac Upp Upp War Machines Accessed 15 | . . . . 1 1 1 1 . 2 1 . 2 1 . 5 Terminals 7 | . . . . 1 . 1 1 . 1 1 . 2 . . . Fabricators . | . . . . . . . . . . . . . . . . Repair Stations . | . . . . . . . . . . . . . . . . Recycling Units . | . . . . . . . . . . . . . . . . Scanalyzers . | . . . . . . . . . . . . . . . . Garrison Access 2 | . . . . . 1 . . . 1 . . . . . . Total Hacks 28 | . . . . 1 2 3 2 . 5 1 . 4 1 . 9 Successful 16 | . . . . 1 1 . 1 . . 1 . 2 1 . 9 Failed 12 | . . . . . 1 3 1 . 5 . . 2 . . . Catastrophic 2 | . . . . . . . . . 2 . . . . . . Database Lockouts . | . . . . . . . . . . . . . . . . Manual . | . . . . . . . . . . . . . . . . Terminals 13 | . . . . 1 . 3 2 . 2 1 . 4 . . . Fabricators . | . . . . . . . . . . . . . . . . Repair Stations . | . . . . . . . . . . . . . . . . Recycling Units . | . . . . . . . . . . . . . . . . Scanalyzers . | . . . . . . . . . . . . . . . . Garrison Access 5 | . . . . . 2 . . . 3 . . . . . . Terminal Hacks 15 | . . . . 1 . . 1 . . 1 . 2 1 . 9 Record 9 | . . . . . . . . . . . . 1 . . 8 Open Door 2 | . . . . . . . . . . . . . 1 . 1 Open DSF 3 | . . . . . . . 1 . . 1 . 1 . . . Registered Components 1 | . . . . 1 . . . . . . . . . . . Fabricator Hacks . | . . . . . . . . . . . . . . . . Repair Station Hacks . | . . . . . . . . . . . . . . . . Recycling Unit Hacks . | . . . . . . . . . . . . . . . . Scanalyzer . | . . . . . . . . . . . . . . . . Garrison Access Hacks 1 | . . . . . 1 . . . . . . . . . . Unlock Access 1 | . . . . . 1 . . . . . . . . . . Unauthorized Hacks . | . . . . . . . . . . . . . . . . Terminals . | . . . . . . . . . . . . . . . . Fabricators . | . . . . . . . . . . . . . . . . Repair Stations . | . . . . . . . . . . . . . . . . Recycling Units . | . . . . . . . . . . . . . . . . Scanalyzers . | . . . . . . . . . . . . . . . . Garrison Access . | . . . . . . . . . . . . . . . . Data Cores Recovered . | . . . . . . . . . . . . . . . . Used . | . . . . . . . . . . . . . . . . Hacking Detections 6 | . . . . . . 1 . . 2 1 . 2 . . . Full Trace Events 3 | . . . . . . 1 . . 1 . . 1 . . . Feedback Events . | . . . . . . . . . . . . . . . . Feedback Blocked . | . . . . . . . . . . . . . . . . Robot Schematics Acquired . | . . . . . . . . . . . . . . . . Robots Built . | . . . . . . . . . . . . . . . . Authchips . | . . . . . . . . . . . . . . . . Time . | . . . . . . . . . . . . . . . . Total Robot Build Rating . | . . . . . . . . . . . . . . . . Part Schematics Acquired . | . . . . . . . . . . . . . . . . Parts Built . | . . . . . . . . . . . . . . . . Authchips . | . . . . . . . . . . . . . . . . Time . | . . . . . . . . . . . . . . . . Total Part Build Rating . | . . . . . . . . . . . . . . . . Parts Repaired . | . . . . . . . . . . . . . . . . Time . | . . . . . . . . . . . . . . . . Parts Recycled . | . . . . . . . . . . . . . . . . Recycled Matter . | . . . . . . . . . . . . . . . . Retrieved Matter . | . . . . . . . . . . . . . . . . Retrieved Components . | . . . . . . . . . . . . . . . . Parts Scanalyzed . | . . . . . . . . . . . . . . . . Part Schematics Acquired . | . . . . . . . . . . . . . . . . Parts Damaged . | . . . . . . . . . . . . . . . . Bothacking | -11 -10 -9 -9 -8 -7 -7 -7 -7 -6 -5 -5 -4 -4 -4 -4 ------------ Run | Yrd Mat Mat Min Mat Fac Gar Fac DSF Fac Fac DSF Fac Upp Upp War Used RIF Installer . | . . . . . . . . . . . . . . . . Robots Hacked 9 | . . . . 1 1 2 . 1 . . . . 2 . 2 Non-combat . | . . . . . . . . . . . . . . . . Combat 9 | . . . . 1 1 2 . 1 . . . . 2 . 2 Robot Hacks Applied 11 | . . . . 2 2 2 . 1 . . . . 2 . 2 find_shortcuts 9 | . . . . 1 1 2 . 1 . . . . 2 . 2 find_garrison 2 | . . . . 1 1 . . . . . . . . . . Relay Couplers Released . | . . . . . . . . . . . . . . . . Fabnet Peak Effective % . | . . . . . . . . . . . . . . . . Robots Rewired . | . . . . . . . . . . . . . . . . Allies Hacked . | . . . . . . . . . . . . . . . . Hacks Repelled . | . . . . . . . . . . . . . . . . Allies | -11 -10 -9 -9 -8 -7 -7 -7 -7 -6 -5 -5 -4 -4 -4 -4 -------- Run | Yrd Mat Mat Min Mat Fac Gar Fac DSF Fac Fac DSF Fac Upp Upp War Total Allies . | . . . . . . . . . . . . . . . . Largest Group . | . . . . . . . . . . . . . . . . Highest-Rated Group . | . . . . . . . . . . . . . . . . Highest-Rated Ally . | . . . . . . . . . . . . . . . . Total Orders . | . . . . . . . . . . . . . . . . Ally Attacks . | . . . . . . . . . . . . . . . . Total Damage . | . . . . . . . . . . . . . . . . Kills . | . . . . . . . . . . . . . . . . Allies Corrupted . | . . . . . . . . . . . . . . . . Allies Melted . | . . . . . . . . . . . . . . . . Intel | -11 -10 -9 -9 -8 -7 -7 -7 -7 -6 -5 -5 -4 -4 -4 -4 ------- Run | Yrd Mat Mat Min Mat Fac Gar Fac DSF Fac Fac DSF Fac Upp Upp War Active Infowar (turns) 1394 | . . . . . . . . 150 397 109 109 583 46 . . Optics 1394 | . . . . . . . . 150 397 109 109 583 46 . . A.S.S. 1394 | . . . . . . . . 150 397 109 109 583 46 . . Jamming 1394 | . . . . . . . . 150 397 109 109 583 46 . . Robot Analysis Total 10 | . 1 . . 1 1 2 . 1 . . . . 2 . 2 Derelict Logs Recovered 2 | . . . . . . . . . . . . . 2 . . Drone Launches . | . . . . . . . . . . . . . . . . Drone Recoveries . | . . . . . . . . . . . . . . . . Exploration | -11 -10 -9 -9 -8 -7 -7 -7 -7 -6 -5 -5 -4 -4 -4 -4 ------------- Run | Yrd Mat Mat Min Mat Fac Gar Fac DSF Fac Fac DSF Fac Upp Upp War Turns Passed 4524 | 13 77 63 44 178 325 564 176 186 397 109 109 583 705 321 674 Spaces Moved 4358 | 25 127 79 55 344 434 435 147 119 234 65 60 321 673 245 995 Core 1228 | 25 86 . . 30 5 250 . . . . . . 2 . 830 Treads 881 | . . . . . . 100 . 89 234 65 60 321 12 . . Legs 1171 | . . . . . 79 85 147 30 . . . . 427 245 158 Wheels 241 | . 41 79 55 66 . . . . . . . . . . . Hover . | . . . . . . . . . . . . . . . . Flight 837 | . . . . 248 350 . . . . . . . 232 . 7 Fastest Speed 32 | 50 50 80 80 37 37 50 120 120 170 170 170 170 32 120 32 Average Speed 94 | 50 59 80 80 46 52 113 120 157 170 170 170 173 93 120 60 Slowest Speed 350 | 50 80 80 80 80 120 350 120 170 170 170 170 330 330 120 120 Overloaded Moves . | . . . . . . . . . . . . . . . . Propulsion Burnouts . | . . . . . . . . . . . . . . . . Robots Hopped 12 | . . . . 6 6 . . . . . . . . . . Potential Cave-ins 1 | . . . . . . . . . . . . . . . 1 Cave-ins Triggered . | . . . . . . . . . . . . . . . . Exploration Rate (%) 37 | 3 23 22 17 55 14 47 9 92 9 1 73 13 88 40 93 Regions Visited 15 Branch Regions 4 Pre-discovered Areas . | . . . . . . . . . . . . . . . . Known Exits Taken 5 | . . . . . 1 . 1 . 1 1 . 1 . . . Unknown Exits Taken 7 | 1 1 1 1 1 . . . . . . . . 1 1 . Scrap Searched 5 | . . . 1 . . . . . . . . . 4 . . Spaces Dug . | . . . . . . . . . . . . . . . . Terrain Destroyed 5 | . . . . . . . . . . . . 1 2 2 . Melee . | . . . . . . . . . . . . . . . . Projectile 5 | . . . . . . . . . . . . 1 2 2 . AOE . | . . . . . . . . . . . . . . . . Terrain Rammed . | . . . . . . . . . . . . . . . . Walls Destroyed . | . . . . . . . . . . . . . . . . Machines Disabled . | . . . . . . . . . . . . . . . . Actions | -11 -10 -9 -9 -8 -7 -7 -7 -7 -6 -5 -5 -4 -4 -4 -4 --------- Run | Yrd Mat Mat Min Mat Fac Gar Fac DSF Fac Fac DSF Fac Upp Upp War Total 4553 | 24 127 78 54 350 481 470 146 118 233 64 63 335 702 254 1054 Wait 92 | . 1 . . 6 20 10 . . . . . . . 2 53 Move 4318 | 24 126 78 54 331 424 430 146 118 233 64 59 320 672 244 995 Hop 10 | . . . . 6 4 . . . . . . . . . . Pick Up . | . . . . . . . . . . . . . . . . Fast Attach . | . . . . . . . . . . . . . . . . Attach . | . . . . . . . . . . . . . . . . Detach . | . . . . . . . . . . . . . . . . Swap . | . . . . . . . . . . . . . . . . Drop . | . . . . . . . . . . . . . . . . Fire 105 | . . . . 7 29 19 . . . . 4 8 27 8 3 Melee 2 | . . . . . . . . . . . . . . . 2 Ram 15 | . . . . . . 11 . . . . . . 3 . 1 Kick 4 | . . . . . 4 . . . . . . . . . . Crush 7 | . . . . . . . . . . . . 7 . . . Escape Stasis . | . . . . . . . . . . . . . . . . Rewire . | . . . . . . . . . . . . . . . . Trap . | . . . . . . . . . . . . . . . . Miscellaneous . | . . . . . . . . . . . . . . . . Route ------- -11/Scrapyard -10/Materials -9/Materials -9/Mines -8/Materials -7/Factory -7/Garrison (discovered 2 exits: *Fac x2) -7/Factory -7/DSF -6/Factory -5/Factory -5/DSF -4/Factory -4/Upper Caves -4/Upper Caves -4/Warlord (discovered 1 exit: [*Pro]) History --------- Turn | Location | Event 5 | -11/Scrapyard | Discovered new exit (range 15) 14 | -11/Scrapyard | Entered Materials 78 | -10/Materials | Discovered new exit (range 13) 91 | -10/Materials | Entered another Materials area 150 | -9/Materials | Discovered new exit (range 6) 154 | -9/Materials | Entered Mines 192 | -9/Mines | Discovered new exit (range 6) 198 | -9/Mines | Entered Materials 374 | -8/Materials | Discovered new exit (range 8) 376 | -8/Materials | Entered Factory 540 | -7/Factory | Lost 4 parts (1p2n1w) 589 | -7/Factory | Garrison activated, responded to threat 673 | -7/Factory | Identified exit to Garrison 701 | -7/Factory | Entered Garrison 731 | -7/Garrison | Lost 5 parts (1p2n2w) 741 | -7/Garrison | Discovered new exit (range 15) 750 | -7/Garrison | Attempted to access garrison exit controls, blocked by remote lockdown 799 | -7/Garrison | Triggered checkpoint 801 | -7/Garrison | Core integrity fell below 50% 955 | -7/Garrison | Triggered checkpoint 967 | -7/Garrison | Triggered checkpoint 967 | -7/Garrison | Triggered checkpoint 990 | -7/Garrison | Core integrity fell below 20% 1035 | -7/Garrison | Destroyed 7 combat bots 1061 | -7/Garrison | Lost 5 parts (2n2u1w) 1073 | -7/Garrison | Triggered checkpoint 1147 | -7/Garrison | Triggered checkpoint 1187 | -7/Garrison | Lost 3 parts (1p1u1w) 1255 | -7/Garrison | Discovered new exit (range 10) 1265 | -7/Garrison | Entered Factory 1441 | -7/Factory | Identified exit to DSF 1441 | -7/Factory | Entered DSF 1602 | -7/DSF | Discovered new exit (range 16) 1625 | -7/DSF | Identified exit to Factory 1627 | -7/DSF | Entered Factory 1998 | -6/Factory | Discovered new exit (range 16) 2022 | -6/Factory | Identified exit to Factory 2024 | -6/Factory | Entered another Factory area 2133 | -5/Factory | Identified exit to DSF 2133 | -5/Factory | Entered DSF 2205 | -5/DSF | Additional patrols routed to DSF 2213 | -5/DSF | Discovered new exit (range 18) 2241 | -5/DSF | Identified exit to Factory 2242 | -5/DSF | Entered Factory 2787 | -4/Factory | Discovered new exit (range 18) 2822 | -4/Factory | Identified exit to Upper Caves 2825 | -4/Factory | Entered Upper Caves 3014 | -4/Upper Caves | Lost 5 parts (1p2n1u1w) 3449 | -4/Upper Caves | Learned 8 Research zone layouts 3518 | -4/Upper Caves | Discovered new exit (range 11) 3530 | -4/Upper Caves | Entered another Upper Caves area 3657 | -4/Upper Caves | Attracted the attention of an 0b10 checkpoint 3845 | -4/Upper Caves | Discovered new exit (range 5) 3851 | -4/Upper Caves | Entered Warlord 3913 | -4/Warlord | System corruption cleaned by Quarantine Array 4179 | -4/Warlord | Visited the Vortex Lab 4191 | -4/Warlord | Warlord's base attacked by MAIN.C 4223 | -4/Warlord | Met Warlord 4324 | -4/Warlord | Learned 4 Armory zone layouts 4324 | -4/Warlord | Learned 4 Armory zone layouts 4324 | -4/Warlord | Learned Quarantine stockpile data 4325 | -4/Warlord | Learned Research repair station intel 4473 | -4/Warlord | Warlord forces counterattacked 4499 | -4/Warlord | Core integrity fell below 50% 4504 | -4/Warlord | Spotted Executioner 4505 | -4/Warlord | Spotted Executioner 4508 | -4/Warlord | Discovered new exit (range 15) 4515 | -4/Warlord | Lost 6 allies 4523 | -4/Warlord | Core integrity fell below 20% 4525 | -4/Warlord | Destroyed by G-67 Veteran with Plasma Rifle Last Messages --------------- 04515_ Lgt. Quantum Reactor blown off. 04515_ Biometal Leg blown off. 04515_ Lost control of H-88 Terminator. 04515_ E-15 Imp destroyed. 04515_ Took control of E-15 Imp. 04515_ Extracted analysis data for E-15 Imp. 04516_ Slug penetrates G-73 Enforcer. 04517_ Lgt. Ion Engine lost to overload. 04517_ G-73 Enforcer Hvy. Laser blown off. 04517_ G-73 Enforcer Phase Gun blown off. 04517_ P-70 Sage suffers critical hit (Burn). 04519_ P-70 Sage destroyed. 04519_ Cesium-ion Thruster destroyed. 04520_ Acquired 34 Protomatter. 04521_ Slug penetrates G-67 Veteran. 04521_ G-67 Veteran suffers critical hit (Destroy). 04522_ Segregator destroyed. 04522_ Cesium-ion Thruster destroyed. 04523_ G-73 Enforcer destroyed. 04524_ Slammed into Executioner. Map ----- +----------------------------------------------------+ | | | | | | | | | ?????????????????????????????????? | | ?????????????????????????????????? | | ?????????????????????????????????? | | ?????????????????????????????????? | | ?????????????????????????????????? | | ?????????????????????????????????? | | ?????????????????????????????????? | | ?????????????????????????????????? | | ?????????????????????????????????? | | ?????????????????????????????????? | | ?????????????????????????????????? | | ???????????##????????????????????? | | ??????????## ???????????####????? | | ?????????## ?????????## ###??? | | ?????????# ????????## #### | | ?????????# #??????## < < | | ?????????# ??????# ? | | ?????????? #?????# #? | | ??????????? ?????# #? | | ????????????# ##????# ; #?? | | ?????????????# #????#gE g ;; #?? | | ??????????????# #???##Egeg;#????? | | ??????????????# #####g%*g ###???? | | ??????????????# =[* [p [g #???? | | ??????????????##%== ggpg### #?? | | ???????????????#;! gb #? #? | | ???????????????## gg# #?? #? | | #??????????????# * ##? ##? | | #??????????????# = #?? #?? | | #???????????#### ! #?? ##? | | #####??###### # ## / ##?? #? | | "#### # ## "#? ##? | | """""" # # # ##?? | | !%%% = ### # #???? | | =*=== [ ! # ### #???? | | %%%%% !% = [ "# #??? | | %[%[ ! [% #### #??? | | *%%% = % # ##???? #??? | | !*=% "" ## #???? #??? | | ! """"""" " ## #???? ??? | | "############## " "#???? ??? | | #####?????????????"[ %"#???? ??? | | #????????????????#" ! "#??? ???? | | #????????????????" ""#??? ???? | | #???????????????## "" #??? ???? | | #???????????????# ####??? #???? | +----------------------------------------------------+ Best States ------------- Heat Dissipation 61 Energy Generation 30 Energy Capacity 240 Matter Stores 250 Matter Capacity 250 Sight Range 18 Robot Scan Range 20 Terrain Scan Density 10 Jamming Range 12 EM Shielding 2 Armor Coverage 600 Resistance: KI 45 Resistance: TH 20 Resistance: EX 70 Resistance: EM 20 Resistance: I 70 Resistance: S 70 Resistance: P 70 Propulsion Shielding 33 Weapon Cycling 15 Phase Shifting 15 Evasion (%) 63 Targeting Accuracy 8 Recoil Reduction 3 Offensive Hacking 10 Item Schematics ----------------- None Robot Schematics ------------------ None Fabricated ------------ Nothing Repaired ---------- Nothing Alien Tech Used ----------------- None Achievements -------------- A Powerful Ally? Armchair Analyst Cya! I Spy Challenges ------------ None Polymind | -11 -10 -9 -9 -8 -7 -7 -7 -7 -6 -5 -5 -4 -4 -4 -4 ---------- Run | Yrd Mat Mat Min Mat Fac Gar Fac DSF Fac Fac DSF Fac Upp Upp War Hosts 10 | . 1 . . 1 1 2 . 1 . . . . 2 . 2 Combat Hostiles 9 | . . . . 1 1 2 . 1 . . . . 2 . 2 Allies . | . . . . . . . . . . . . . . . . Unique Host Classes 7 | . 1 . . 1 1 2 . 1 . . . . . . 1 Average Host Suspicion 70 | . 12 50 6 75 86 89 28 68 56 12 64 76 94 61 24 Unsuspicious Activity 168 | . 14 21 30 15 . 40 . 48 . . . . . . . Returns to Shadow . | . . . . . . . . . . . . . . . . Fuzzy Dispatches 1 | . . . . . . . . . . . . 1 . . . Protomatter Created 934 | . . . . 4 73 130 . . . . . . 33 23 671 Used 402 | . 5 . . 6 34 81 . 96 . . . . 88 . 92 Decayed 280 | . . . . 4 . . . . . . . . . . 276 Highest Spend 96 | . 5 . . 6 34 51 . 96 . . . . 74 . 86 Top 5 Hosts by Kills: H-77 Assassin (-4/Upper Caves: 14) Y-54 Guardian (-7/Garrison: 8) H-61 Shepherd (-7/DSF: 6) H-55 Commando (-7/Factory: 5) S-10 Pest (-8/Materials: 3) Game ------ Seed TractorMappingSword Manual? 0 Play Time 00:44:10 Cumulative 12.6 hours Start 2025.10.14 @ 23:50:34 End 2025.10.15 @ 00:35:02 Sessions 1 Manual Loads 0 Difficulty Adventurer Special Mode Winter2022/Polymind Game No. 22 Rogue 8 Adventurer 14 Explorer 0 Win Type - Total 0 Types 0/0/0/0/0/0/0/0/0/0 Lore% 12 Gallery% 25 Achievement% 20 Wizard Run 0 Options --------- Layout 0 ASCII 0 Keyboard 1 Movement Numpad Keybinds 0 Fullscreen 1 Font 18/X11 Map View 76x50 Zoom Use 2% Tactical HUD 1 Map Filters NONE Filters NONE Steam 1 RUN: ac6a6243-c0c3-4be5-bc26-b9884e18ec32